fUST/lending_fUST_20240908
["ID","MTS","AMOUNT","RATE_DAILY","PERIOD"]
[337543616,1725805856960,-214.309567,0.0003174,7]
[337543617,1725805856970,-8683.954569,0.0003174,7]
[337543618,1725805856980,-8683.954569,0.0003174,7]
[337543619,1725805856989,-175.753031,0.0003174,7]
[337543620,1725805856999,-175.753031,0.0003174,7]
[337543621,1725805857008,-696.86626155,0.00032106,2]
[337543622,1725805857017,-3356.646086,0.00032107,7]
[337543623,1725805857029,-3356.646086,0.00032107,7]
[337543624,1725805857038,-151.0,0.00032107,7]
[337543625,1725805857047,-2558.69296,0.00032127,2]
[337543626,1725805857057,-2634.413382,0.00032127,2]
[337543627,1725805857067,-429.263436,0.00032127,7]
[337543628,1725805857077,-429.263436,0.00032127,7]
[337543629,1725805857086,-208.2062936,0.00032329,2]
[337543630,1725805857096,-208.2062936,0.00032329,2]
[337543631,1725805857107,-306.0,0.00032329,2]
[337543632,1725805857117,-2558.69296,0.00032514,2]
[337543633,1725805857127,-2634.413382,0.00032514,2]
[337543634,1725805857136,-208.2062936,0.00032548,2]
[337543635,1725805857145,-208.2062936,0.00032548,2]
[337543636,1725805857154,-2735.881632,0.00032608,7]
[337543637,1725805857163,-2735.88164156,0.00032608,7]
[337543638,1725805857172,-201.504356,0.00032608,7]
[337543639,1725805857181,-201.50436,0.00032608,7]
[337543640,1725805857190,-305.178268,0.00032608,7]
[337543641,1725805857199,-305.178265,0.00032608,7]
[337543642,1725805857208,-1613.0,0.00032816,2]
[337543643,1725805857217,-3000.0,0.00032876,2]
[337543644,1725805857227,-1006.20992387,0.00032876,2]
[337543645,1725805857236,-489.69550784,0.00032877,2]
[337543646,1725805857245,-422.10490631,0.00033,2]
[337543647,1725805857254,-262.0,0.00033,2]
[337543648,1725805857264,-262.0,0.00033,2]
[337543649,1725805857273,-151.0,0.00033014,120]
[337543650,1725805857283,-500.0,0.000335,5]
[337543651,1725805857291,-190.83637029,0.000335,5]
[337543652,1725805857301,-255.27453202,0.000335,5]
[337543653,1725805857310,-500.0,0.000335,5]
[337543654,1725805857319,-203.10948018,0.000335,3]
[337543655,1725805857329,-326.262754,0.00033533,14]
[337543656,1725805857338,-326.262754,0.00033533,14]
[337543657,1725805857347,-585.572547,0.00033533,14]
[337543658,1725805857358,-585.572547,0.00033533,14]
[337543659,1725805857367,-5808.184206,0.00033533,14]
[337543660,1725805857376,-5808.184197,0.00033533,14]
[337543661,1725805857386,-151.0,0.00033533,14]
[337543662,1725805857395,-1000.0,0.00034,34]
[337543663,1725805857404,-160.0,0.00034058,3]
[337543664,1725805857413,-151.0,0.00034274,120]
[337543665,1725805857423,-500.0,0.0003443,13]
[337543666,1725805857432,-776.1490167,0.00034521,120]
[337543667,1725805857441,-1000.0,0.000348,3]
[337543668,1725805857450,-1000.0,0.000348,3]
[337543669,1725805857458,-500.0,0.00034846,13]
[337543670,1725805857468,-1000.0,0.0003487,5]
[337543671,1725805857477,-1000.0,0.0003487,5]
[337543672,1725805857487,-12890.4437724,0.00035,7]
[337543673,1725805857496,-1000.0,0.00035,3]
[337543674,1725805857505,-1577.21,0.00035,60]
[337543675,1725805857514,-160.0,0.0003523,4]
[337543676,1725805857523,-168.352943,0.00035283,2]
[337543677,1725805857533,-280.778584,0.00035616,14]
[337543678,1725805857542,-167.098748,0.00035616,14]
[337543679,1725805857553,-167.098748,0.00035616,14]
[337543680,1725805857564,-214.309567,0.00035616,14]
[337543681,1725805857574,-214.30957,0.00035616,14]
[337543682,1725805857583,-8683.954569,0.00035616,14]
[337543683,1725805857592,-8683.954561,0.00035616,14]
[337543684,1725805857601,-175.753031,0.00035616,14]
[337543685,1725805857611,-175.753022,0.00035616,14]
[337543686,1725805857621,-3356.646086,0.00035616,14]
[337543687,1725805857632,-3356.646081,0.00035616,14]
[337543688,1725805857642,-151.0,0.00035616,14]
[337543689,1725805857653,-252.113,0.00035616,120]
[337543690,1725805857663,-500.0,0.00035616,7]
[337543691,1725805857672,-500.0,0.00035616,7]
[337543692,1725805857681,-284.11247292,0.00035616,7]
[337543693,1725805857691,-500.0,0.00035616,7]
[337543694,1725805857700,-500.0,0.00035616,7]
[337543695,1725805857710,-500.0,0.00035616,7]
[337543696,1725805857720,-500.0,0.00035616,7]
[337543697,1725805857729,-500.0,0.00035616,7]
[337543698,1725805857738,-500.0,0.00035616,7]
[337543699,1725805857748,-500.0,0.00035616,7]
[337543700,1725805857758,-500.0,0.00035616,7]
[337543701,1725805857769,-500.0,0.00035616,7]
[337543702,1725805857779,-500.0,0.00035616,7]
[337543703,1725805857788,-500.0,0.00035616,7]
[337543704,1725805857798,-500.0,0.00035616,7]
[337543705,1725805857807,-500.0,0.00035616,7]
[337543706,1725805857816,-500.0,0.00035616,7]
[337543707,1725805857826,-198.308064,0.00035616,120]
[337543708,1725805857836,-696.86626155,0.00035725,2]
[337543709,1725805857845,-274.75898076,0.00036,30]
[337543710,1725805857854,-1000.0,0.00036,4]
[337543711,1725805857864,-17119.66097316,0.00036,60]
[337543712,1725805857874,-429.263436,0.00036,14]
[337543713,1725805858005,-429.263436,0.00036,14]
[337543714,1725805858015,-262.0,0.00036,2]
[337543715,1725805858027,-262.0,0.00036,2]
[337543716,1725805858037,-262.0,0.00036,2]
[337543717,1725805858046,-151.0,0.00036027,120]
[337543718,1725805858056,-1477.0,0.00036097,2]
[337543719,1725805858065,-360.0,0.00036164,2]
[337543720,1725805858074,-258.76125865,0.0003624,2]
[337543721,1725805858083,-160.0,0.00036403,5]
[337543722,1725805858093,-202.5128139,0.00037,2]
[337543723,1725805858102,-2000.0,0.00037,30]
[337543724,1725805858111,-1500.0,0.00037375,5]
[337543725,1725805858120,-1500.0,0.00037375,5]
[337543726,1725805858130,-232.9514,0.00037552,30]
[337543727,1725805858139,-160.0,0.00037575,6]
[337543728,1725805858148,-502.0,0.0003766,120]
[337543729,1725805858157,-151.0,0.000377,2]
[337543730,1725805858167,-156.89971574,0.000377,120]
[337543731,1725805858176,-208.2062936,0.00037808,2]
[337543732,1725805858185,-2300.45689711,0.0003786,120]
[337543733,1725805858196,-552.10036957,0.00038,30]
[337543734,1725805858205,-1000.0,0.00038,38]
[337543735,1725805858215,-465.05,0.00038,2]
[337543736,1725805858224,-2000.0,0.00038,40]
[337543737,1725805858233,-3300.0,0.00038,30]
[337543738,1725805858243,-19137.2760887,0.00038015,3]
[337543739,1725805858252,-167.098748,0.00038015,14]
[337543740,1725805858261,-167.098754,0.00038015,14]
[337543741,1725805858269,-208.2062936,0.00038082,2]
[337543742,1725805858279,-200.0,0.00038124,2]
[337543743,1725805858288,-155.0,0.00038129,2]
[337543744,1725805858298,-155.0,0.00038129,2]
[337543745,1725805858306,-155.0,0.00038129,2]
[337543746,1725805858325,-234.55280221,0.00038129,2]
[337543747,1725805858334,-800.0,0.00038356,30]
[337543748,1725805858342,-300.976177,0.000384,20]
[337543749,1725805858351,-429.263436,0.0003843,14]
[337543750,1725805858361,-429.263436,0.0003843,14]
[337543751,1725805858371,-1000.0,0.0003843,2]
[337543752,1725805858380,-853.25,0.0003843,2]
[337543753,1725805858390,-1000.0,0.0003845,2]
[337543754,1725805858400,-394.82926878,0.00038502,2]
[337543755,1725805858410,-1000.0,0.00038503,2]
[337543756,1725805858419,-1000.0,0.00038508,2]
[337543757,1725805858428,-1000.0,0.00038513,2]
[337543758,1725805858437,-1000.0,0.00038521,2]
[337543759,1725805858446,-1000.0,0.00038522,2]
[337543760,1725805858456,-1000.0,0.00038527,2]
[337543761,1725805858468,-151.0,0.00038548,120]
[337543762,1725805858477,-977.01502749,0.00038558,2]
[337543763,1725805858487,-1000.0,0.00038588,2]
[337543764,1725805858496,-1000.0,0.00038608,2]
[337543765,1725805858506,-300.0,0.00038699,2]
[337543766,1725805858515,-160.0,0.00038748,7]
[337543767,1725805858524,-306.32448752,0.00038857,2]
[337543768,1725805858534,-1002.0,0.00038858,30]
[337543769,1725805858544,-9127.0,0.00038868,30]
[337543770,1725805858553,-500.0,0.0003887,30]
[337543771,1725805858565,-206.15822407,0.00038871,30]
[337543772,1725805858574,-666.0,0.00038904,120]
[337543773,1725805858584,-2000.0,0.00039,60]
[337543774,1725805858594,-262.0,0.00039,2]
[337543775,1725805858604,-262.0,0.00039,2]
[337543776,1725805858614,-262.0,0.00039,2]
[337543777,1725805858625,-151.0,0.00039041,120]
[337543778,1725805858635,-152.0,0.00039097,15]
[337543779,1725805858645,-3016.63853264,0.00039192,2]
[337543780,1725805858656,-245.15871287,0.00039192,2]
[337543781,1725805858666,-300.0,0.00039192,2]
[337543782,1725805858675,-791.86171503,0.00039192,2]
[337543783,1725805858685,-513.21337535,0.00039192,2]
[337543784,1725805858694,-290.4811291,0.00039192,2]
[337543785,1725805858704,-319.81367435,0.00039192,2]
[337543786,1725805858713,-285.35862896,0.00039192,2]
[337543787,1725805858722,-1182.95763886,0.00039192,2]
[337543788,1725805858732,-1128.25882016,0.00039192,2]
[337543789,1725805858741,-154.04991709,0.00039192,2]
[337543790,1725805858750,-514.28168977,0.00039192,2]
[337543791,1725805858759,-229.19748427,0.00039192,5]
[337543792,1725805858769,-1514.21510914,0.00039192,2]
[337543793,1725805858779,-436.46668032,0.00039192,2]
[337543794,1725805858788,-222.94765046,0.00039192,2]
[337543795,1725805858797,-3052.15215662,0.00039192,2]
[337543796,1725805858807,-1016.84581248,0.00039192,2]
[337543797,1725805858827,-9000.0,0.00039192,2]
[337543798,1725805858836,-3246.0189863,0.00039192,2]
[337543799,1725805858845,-1519.84561291,0.00039192,2]
[337543800,1725805858854,-903.14246986,0.00039192,2]
[337543801,1725805858863,-457.74237893,0.00039192,2]
[337543802,1725805858871,-4222.51666428,0.00039192,20]
[337543803,1725805858880,-1244.57368133,0.00039192,120]
[337543804,1725805858890,-12815.60647053,0.00039192,4]
[337543805,1725805858898,-696.86626155,0.00039343,2]
[337543806,1725805858907,-429.263436,0.00039452,14]
[337543807,1725805858917,-429.263444,0.00039452,14]
[337543808,1725805858926,-800.0,0.00039452,31]
[337543809,1725805858935,-152.0,0.00039683,15]
[337543810,1725805858945,-500.0,0.00039726,15]
[337543811,1725805858954,-500.0,0.00039726,15]
[337543812,1725805858963,-500.0,0.00039726,15]
[337543813,1725805858973,-500.0,0.00039726,15]
[337543814,1725805858982,-500.0,0.00039726,15]
[337543815,1725805858991,-500.0,0.00039726,15]
[337543816,1725805859001,-500.0,0.00039726,15]
[337543817,1725805859010,-500.0,0.00039726,15]
[337543818,1725805859019,-500.0,0.00039726,15]
[337543819,1725805859031,-500.0,0.00039726,15]
[337543820,1725805859040,-500.0,0.00039726,15]
[337543821,1725805859050,-479.92497375,0.00039726,15]
[337543822,1725805859059,-160.0,0.0003992,8]
[337543823,1725805859070,-557.47526593,0.0004,120]
[337543824,1725805859079,-200.0,0.0004,120]
[337543825,1725805859088,-653.32502583,0.0004,120]
[337543826,1725805859098,-167.8,0.0004,120]
[337543827,1725805859108,-2000.0,0.0004,70]
[337543828,1725805859117,-152.0,0.0004027,15]
[337543829,1725805859126,-800.0,0.00040547,32]
[337543830,1725805859135,-2000.0,0.00040618,5]
[337543831,1725805859144,-1011.42401412,0.00040618,5]
[337543832,1725805859153,-152.0,0.00040856,15]
[337543833,1725805859162,-160.0,0.00041093,9]
[337543834,1725805859171,-255.7,0.00041096,15]
[337543835,1725805859181,-179.9560613,0.00041096,2]
[337543836,1725805859190,-152.0,0.00041442,31]
[337543837,1725805859200,-800.0,0.00041643,33]
[337543838,1725805859209,-153.0,0.00041918,120]
[337543839,1725805859218,-153.0,0.00041918,120]
[337543840,1725805859229,-153.0,0.00041918,120]
[337543841,1725805859240,-153.0,0.00041918,120]
[337543842,1725805859251,-153.0,0.00041928,120]
[337543843,1725805859261,-262.0,0.00042,2]
[337543844,1725805859271,-262.0,0.00042,2]
[337543845,1725805859280,-262.0,0.00042,2]
[337543846,1725805859290,-152.0,0.00042028,31]
[337543847,1725805859299,-151.0,0.00042055,120]
[337543848,1725805859309,-160.0,0.00042265,10]
[337543849,1725805859319,-223.70237193,0.00042265,5]
[337543850,1725805859328,-500.0,0.00042281,30]
[337543851,1725805859337,-214.34094981,0.000425,30]
[337543852,1725805859347,-152.0,0.00042615,31]
[337543853,1725805859356,-800.0,0.00042739,34]
[337543854,1725805859365,-151.0,0.00042822,120]
[337543855,1725805859374,-696.86626155,0.00042961,2]
[337543856,1725805859383,-152.0,0.00043201,31]
[337543857,1725805859392,-955.9850151,0.000433,120]
[337543858,1725805859402,-5000.0,0.00043667,10]
[337543859,1725805859411,-152.0,0.00043787,31]
[337543860,1725805859421,-1000.0,0.00043835,2]
[337543861,1725805859430,-1000.0,0.00043835,2]
[337543862,1725805859440,-1000.0,0.00043835,2]
[337543863,1725805859449,-515.37806798,0.00043835,2]
[337543864,1725805859458,-800.0,0.00043835,35]
[337543865,1725805859468,-1000.0,0.00044,120]
[337543866,1725805859479,-152.0,0.00044373,31]
[337543867,1725805859490,-1007.70950147,0.00044459,10]
[337543868,1725805859500,-500.0,0.00044507,30]
[337543869,1725805859509,-198.308064,0.00044521,120]
[337543870,1725805859520,-800.0,0.00044931,36]
[337543871,1725805859530,-152.0,0.0004496,31]
[337543872,1725805859541,-201.7945623,0.00045,120]
[337543873,1725805859550,-151.43131634,0.00045,120]
[337543874,1725805859559,-500.0,0.00045,14]
[337543875,1725805859570,-190052.7436978,0.00045,30]
[337543876,1725805859579,-262.0,0.00045,2]
[337543877,1725805859589,-262.0,0.00045,2]
[337543878,1725805859599,-151.0,0.00045068,120]
[337543879,1725805859609,-640.40409293,0.000455,120]
[337543880,1725805859618,-152.0,0.00045546,31]
[337543881,1725805859628,-192.61778037,0.00046,30]
[337543882,1725805859637,-800.0,0.00046027,37]
[337543883,1725805859647,-109096.34337979,0.00046568,120]
[337543884,1725805859657,-501.66816277,0.00046575,120]
[337543885,1725805859667,-500.0,0.00046575,120]
[337543886,1725805859678,-500.0,0.00046575,120]
[337543887,1725805859689,-221.41863754,0.00046575,120]
[337543888,1725805859701,-500.0,0.00046575,120]
[337543889,1725805859711,-500.0,0.00046575,120]
[337543890,1725805859723,-578.28396671,0.00046575,120]
[337543891,1725805859736,-500.0,0.00046575,120]
[337543892,1725805859746,-500.0,0.00046575,120]
[337543893,1725805859757,-500.0,0.00046575,120]
[337543894,1725805859767,-353.42702124,0.00046575,120]
[337543895,1725805859777,-500.0,0.00046575,120]
[337543896,1725805859786,-500.0,0.00046575,120]
[337543897,1725805859795,-500.0,0.00046575,120]
[337543898,1725805859805,-500.0,0.00046575,120]
[337543899,1725805859815,-500.0,0.00046575,120]
[337543900,1725805859826,-500.0,0.00046575,120]
[337543901,1725805859835,-500.0,0.00046575,120]
[337543902,1725805859845,-500.0,0.00046575,120]
[337543903,1725805859856,-500.0,0.00046575,120]
[337543904,1725805859866,-500.0,0.00046575,120]
[337543905,1725805859876,-500.0,0.00046575,120]
[337543906,1725805859885,-501.72951004,0.00046575,120]
[337543907,1725805859894,-500.0,0.00046575,120]
[337543908,1725805859904,-500.0,0.00046575,120]
[337543909,1725805859913,-500.0,0.00046575,120]
[337543910,1725805859922,-500.0,0.00046575,120]
[337543911,1725805859931,-500.69692364,0.00046575,120]
[337543912,1725805859941,-500.0,0.00046575,120]
[337543913,1725805859951,-500.0,0.00046575,60]
[337543914,1725805859960,-500.0,0.00046575,120]
[337543915,1725805859969,-500.0,0.00046575,120]
[337543916,1725805859978,-500.0,0.00046575,120]
[337543917,1725805859987,-500.0,0.00046575,120]
[337543918,1725805859997,-673.59,0.00046575,120]
[337543919,1725805860006,-911.08,0.00046575,120]
[337543920,1725805860016,-500.0,0.00046575,120]
[337543921,1725805860026,-500.0,0.00046575,120]
[337543922,1725805860035,-500.0,0.00046575,120]
[337543923,1725805860044,-1000.0,0.00046575,120]
[337543924,1725805860054,-500.0,0.00046575,120]
[337543925,1725805860063,-500.0,0.00046575,120]
[337543926,1725805860073,-500.0,0.00046575,120]
[337543927,1725805860082,-500.0,0.00046575,120]
[337543928,1725805860092,-500.0,0.00046575,120]
[337543929,1725805860101,-500.0,0.00046575,120]
[337543930,1725805860111,-500.0,0.00046575,120]
[337543931,1725805860120,-500.0,0.00046575,120]
[337543932,1725805860130,-500.0,0.00046575,120]
[337543933,1725805860140,-500.0,0.00046575,120]
[337543934,1725805860149,-500.0,0.00046575,120]
[337543935,1725805860159,-500.0,0.00046575,120]
[337543936,1725805860168,-500.0,0.00046575,120]
[337543937,1725805860178,-500.0,0.00046575,120]
[337543938,1725805860187,-500.0,0.00046575,120]
[337543939,1725805860197,-500.0,0.00046575,120]
[337543940,1725805860207,-500.0,0.00046575,120]
[337543941,1725805860216,-500.0,0.00046575,120]
[337543942,1725805860226,-500.0,0.00046575,120]
[337543943,1725805860235,-500.0,0.00046575,120]
[337543944,1725805860245,-170.58535342,0.00046575,120]
[337543945,1725805860255,-500.0,0.00046575,120]
[337543946,1725805860264,-629.21,0.00046575,120]
[337543947,1725805860274,-500.0,0.00046575,120]
[337543948,1725805860284,-197.68119037,0.00046575,120]
[337543949,1725805860293,-500.0,0.00046575,120]
[337543950,1725805860303,-500.0,0.00046575,120]
[337543951,1725805860313,-647.52,0.00046575,120]
[337543952,1725805860325,-883.64,0.00046575,120]
[337543953,1725805860335,-500.0,0.00046575,120]
[337543954,1725805860344,-500.0,0.00046575,120]
[337543955,1725805860353,-500.0,0.00046575,120]
[337543956,1725805860363,-500.0,0.00046575,120]
[337543957,1725805860373,-500.0,0.00046575,120]
[337543958,1725805860383,-500.0,0.00046575,120]
[337543959,1725805860393,-500.0,0.00046575,120]
[337543960,1725805860403,-500.0,0.00046575,120]
[337543961,1725805860413,-695.11,0.00046575,120]
[337543962,1725805860422,-500.0,0.00046575,120]
[337543963,1725805860432,-539.71,0.00046575,120]
[337543964,1725805860441,-500.0,0.00046575,120]
[337543965,1725805860452,-500.0,0.00046575,120]
[337543966,1725805860462,-500.0,0.00046575,120]
[337543967,1725805860472,-500.0,0.00046575,120]
[337543968,1725805860482,-500.0,0.00046575,120]
[337543969,1725805860492,-500.0,0.00046575,120]
[337543970,1725805860502,-1337.0,0.00046575,120]
[337543971,1725805860511,-500.0,0.00046575,120]
[337543972,1725805860521,-500.0,0.00046575,120]
[337543973,1725805860532,-500.0,0.00046575,120]
[337543974,1725805860542,-503.08869636,0.00046575,120]
[337543975,1725805860552,-500.0,0.00046575,120]
[337543976,1725805860563,-1005.43,0.00046575,120]
[337543977,1725805860572,-560.39193833,0.00046575,120]
[337543978,1725805860581,-519.26,0.00046575,120]
[337543979,1725805860590,-500.0,0.00046575,120]
[337543980,1725805860600,-500.0,0.00046575,120]
[337543981,1725805860609,-500.0,0.00046575,120]
[337543982,1725805860619,-500.0,0.00046575,120]
[337543983,1725805860630,-500.0,0.00046575,120]
[337543984,1725805860640,-500.0,0.00046575,120]
[337543985,1725805860650,-500.0,0.00046575,120]
[337543986,1725805860660,-500.0,0.00046575,120]
[337543987,1725805860670,-500.48828087,0.00046575,120]
[337543988,1725805860680,-500.0,0.00046575,120]
[337543989,1725805860689,-500.0,0.00046575,120]
[337543990,1725805860699,-500.0,0.00046575,120]
[337543991,1725805860709,-500.0,0.00046575,120]
[337543992,1725805860719,-500.0,0.00046575,120]
[337543993,1725805860729,-501.60185546,0.00046575,120]
[337543994,1725805860739,-500.0,0.00046575,30]
[337543995,1725805860749,-500.0,0.00046575,120]
[337543996,1725805860759,-1000.0,0.00046575,120]
[337543997,1725805860769,-500.0,0.00046575,120]
[337543998,1725805860778,-500.0,0.00046575,120]
[337543999,1725805860789,-500.0,0.00046575,120]
[337544000,1725805860799,-500.0,0.00046575,120]
[337544001,1725805860808,-500.0,0.00046575,120]
[337544002,1725805860818,-777.71,0.00046575,120]
[337544003,1725805860828,-500.0,0.00046575,120]
[337544004,1725805860837,-536.44,0.00046575,120]
[337544005,1725805860847,-500.0,0.00046575,120]
[337544006,1725805860857,-500.0,0.00046575,120]
[337544007,1725805860866,-500.0,0.00046575,120]
[337544008,1725805860876,-500.0,0.00046575,120]
[337544009,1725805860886,-500.0,0.00046575,120]
[337544010,1725805860895,-500.0,0.00046575,120]
[337544011,1725805860905,-500.0,0.00046575,120]
[337544012,1725805860915,-500.0,0.00046575,120]
[337544013,1725805860926,-500.0,0.00046575,120]
[337544014,1725805860935,-395.06,0.00046575,120]
[337544015,1725805860945,-500.0,0.00046575,120]
[337544016,1725805860956,-500.0,0.00046575,120]
[337544017,1725805860967,-500.0,0.00046575,120]
[337544018,1725805860977,-1035.22,0.00046575,120]
[337544019,1725805860986,-500.0,0.00046575,120]
[337544020,1725805860996,-500.0,0.00046575,120]
[337544021,1725805861005,-500.0,0.00046575,120]
[337544022,1725805861015,-500.0,0.00046575,120]
[337544023,1725805861027,-514.25400282,0.00046575,120]
[337544024,1725805861038,-500.0,0.00046575,120]
[337544025,1725805861047,-624.92391384,0.00046575,120]
[337544026,1725805861057,-246.44431703,0.00046575,120]
[337544027,1725805861074,-500.0,0.00046575,120]
[337544028,1725805861083,-500.0,0.00046575,120]
[337544029,1725805861092,-500.0,0.00046575,120]
[337544030,1725805861102,-500.0,0.00046575,120]
[337544031,1725805861112,-500.0,0.00046575,120]
[337544032,1725805861123,-500.0,0.00046575,120]
[337544033,1725805861133,-500.0,0.00046575,120]
[337544034,1725805861143,-500.0,0.00046575,120]
[337544035,1725805861152,-500.0,0.00046575,120]
[337544036,1725805861162,-500.0,0.00046575,120]
[337544037,1725805861171,-500.0,0.00046575,120]
[337544038,1725805861181,-500.0,0.00046575,120]
[337544039,1725805861191,-500.0,0.00046575,120]
[337544040,1725805861200,-500.0,0.00046575,120]
[337544041,1725805861210,-500.0,0.00046575,120]
[337544042,1725805861220,-500.0,0.00046575,120]
[337544043,1725805861229,-500.0,0.00046575,120]
[337544044,1725805861239,-754.38,0.00046575,120]
[337544045,1725805861249,-500.0,0.00046575,120]
[337544046,1725805861258,-500.0,0.00046575,120]
[337544047,1725805861268,-1120.52,0.00046575,120]
[337544048,1725805861278,-2095.23,0.00046575,120]
[337544049,1725805861287,-605.94177242,0.00046575,120]
[337544050,1725805861297,-502.13663079,0.00046575,120]
[337544051,1725805861306,-500.0,0.00046575,120]
[337544052,1725805861317,-500.0,0.00046575,120]
[337544053,1725805861326,-500.0,0.00046575,120]
[337544054,1725805861336,-258.75004471,0.00046575,120]
[337544055,1725805861347,-501.18255954,0.00046575,120]
[337544056,1725805861356,-500.0,0.00046575,120]
[337544057,1725805861366,-556.57803944,0.00046575,120]
[337544058,1725805861376,-501.41353041,0.00046575,120]
[337544059,1725805861385,-778.94,0.00046575,120]
[337544060,1725805861395,-500.0,0.00046575,120]
[337544061,1725805861404,-500.0,0.00046575,120]
[337544062,1725805861415,-500.0,0.00046575,120]
[337544063,1725805861425,-503.45694736,0.00046575,120]
[337544064,1725805861584,-500.0,0.00046575,120]
[337544065,1725805861595,-571.63,0.00046575,120]
[337544066,1725805861609,-1114.92,0.00046575,120]
[337544067,1725805861619,-500.0,0.00046575,120]
[337544068,1725805861629,-500.0,0.00046575,120]
[337544069,1725805861639,-500.0,0.00046575,120]
[337544070,1725805861650,-500.0,0.00046575,120]
[337544071,1725805861660,-647.81764183,0.00046575,120]
[337544072,1725805861669,-500.0,0.00046575,120]
[337544073,1725805861680,-500.0,0.00046575,120]
[337544074,1725805861690,-500.0,0.00046575,120]
[337544075,1725805861700,-675.76,0.00046575,120]
[337544076,1725805861710,-599.3889026,0.00046575,120]
[337544077,1725805861719,-500.0,0.00046575,120]
[337544078,1725805861728,-500.0,0.00046575,120]
[337544079,1725805861738,-500.0,0.00046575,120]
[337544080,1725805861748,-500.0,0.00046575,120]
[337544081,1725805861758,-783.87,0.00046575,120]
[337544082,1725805861768,-500.0,0.00046575,120]
[337544083,1725805861778,-500.0,0.00046575,120]
[337544084,1725805861787,-500.0,0.00046575,120]
[337544085,1725805861797,-500.0,0.00046575,120]
[337544086,1725805861806,-722.92,0.00046575,120]
[337544087,1725805861816,-500.0,0.00046575,120]
[337544088,1725805861826,-500.0,0.00046575,120]
[337544089,1725805861837,-500.0,0.00046575,120]
[337544090,1725805861847,-501.4729548,0.00046575,120]
[337544091,1725805861858,-500.0,0.00046575,120]
[337544092,1725805861868,-500.0,0.00046575,120]
[337544093,1725805861878,-500.0,0.00046575,120]
[337544094,1725805861887,-1000.0,0.00046575,30]
[337544095,1725805861896,-2386.87,0.00046575,120]
[337544096,1725805861906,-500.0,0.00046575,120]
[337544097,1725805861917,-2386.87,0.00046575,120]
[337544098,1725805861927,-2386.87,0.00046575,120]
[337544099,1725805861936,-2386.87,0.00046575,120]
[337544100,1725805861946,-500.0,0.00046575,120]
[337544101,1725805861955,-2386.87,0.00046575,120]
[337544102,1725805861965,-198.46824849,0.00046575,120]
[337544103,1725805861975,-2386.87,0.00046575,120]
[337544104,1725805861985,-216.62282759,0.00046575,120]
[337544105,1725805861995,-2386.87,0.00046575,120]
[337544106,1725805862004,-2386.87,0.00046575,120]
[337544107,1725805862014,-2386.87,0.00046575,120]
[337544108,1725805862024,-500.0,0.00046575,120]
[337544109,1725805862036,-2386.87,0.00046575,120]
[337544110,1725805862046,-2386.87,0.00046575,120]
[337544111,1725805862055,-2386.87,0.00046575,120]
[337544112,1725805862066,-500.0,0.00046575,120]
[337544113,1725805862075,-2386.87,0.00046575,120]
[337544114,1725805862084,-2386.87,0.00046575,120]
[337544115,1725805862094,-2386.87,0.00046575,120]